fUSD/lending_fUSD_20250314
["ID","MTS","AMOUNT","RATE_DAILY","PERIOD"]
[356127021,1741932644374,-2743.91,0.00021917,3]
[356127022,1741932644383,-1054.98,0.00021917,3]
[356127023,1741932644393,-500.0,0.00021917,3]
[356127024,1741932644403,-194.548269,0.00021917,2]
[356127025,1741932644413,-500.0,0.00021917,3]
[356127026,1741932644423,-500.0,0.00021917,3]
[356127027,1741932644433,-500.0,0.00021917,3]
[356127028,1741932644444,-500.0,0.00021917,3]
[356127029,1741932644455,-500.0,0.00021917,3]
[356127030,1741932644464,-508.63890665,0.00021917,3]
[356127031,1741932644474,-506.41520894,0.00021917,3]
[356127032,1741932644484,-662.15,0.00021917,3]
[356127033,1741932644494,-514.57557022,0.00021917,3]
[356127034,1741932644504,-500.0,0.00021917,3]
[356127035,1741932644514,-500.0,0.00021917,3]
[356127036,1741932644523,-500.0,0.00021917,3]
[356127037,1741932644533,-500.0,0.00021917,3]
[356127038,1741932644545,-502.34385363,0.00021917,3]
[356127039,1741932644555,-500.0,0.00021917,3]
[356127040,1741932644564,-500.0,0.00021917,3]
[356127041,1741932644574,-500.0,0.00021917,3]
[356127042,1741932644585,-500.0,0.00021917,3]
[356127043,1741932644595,-282.7,0.00021937,2]
[356127044,1741932644605,-994.0,0.00021945,2]
[356127045,1741932644615,-500.0,0.00021945,3]
[356127046,1741932644625,-541.03569627,0.00021945,3]
[356127047,1741932644635,-151.0,0.00021945,7]
[356127048,1741932644644,-151.0,0.00021945,7]
[356127049,1741932644654,-151.0,0.00021945,7]
[356127050,1741932644664,-500.0,0.00021945,3]
[356127051,1741932644673,-500.0,0.00021945,3]
[356127052,1741932644683,-500.0,0.00021945,3]
[356127053,1741932644693,-2014.51,0.00021945,3]
[356127054,1741932644703,-500.0,0.00021945,3]
[356127055,1741932644714,-500.0,0.00021945,3]
[356127056,1741932644724,-500.0,0.00021945,3]
[356127057,1741932644734,-500.0,0.00021945,3]
[356127058,1741932644744,-549.59,0.00021945,3]
[356127059,1741932644755,-500.0,0.00021945,3]
[356127060,1741932644766,-500.0,0.00021945,2]
[356127061,1741932644776,-262.9110163,0.00021945,3]
[356127062,1741932644786,-500.0,0.00021945,3]
[356127063,1741932644796,-591.02200045,0.00021945,3]
[356127064,1741932644806,-500.0,0.00021945,3]
[356127065,1741932644815,-500.0,0.00021945,3]
[356127066,1741932644825,-924.06,0.00021945,3]
[356127067,1741932644835,-500.0,0.00021945,3]
[356127068,1741932644844,-500.0,0.00021945,3]
[356127069,1741932644854,-500.0,0.00021945,3]
[356127070,1741932644864,-1629.51,0.00021945,3]
[356127071,1741932644873,-500.0,0.00021945,3]
[356127072,1741932644883,-547.43,0.00021945,3]
[356127073,1741932644893,-576.2,0.00021945,3]
[356127074,1741932644902,-907.17,0.00021945,3]
[356127075,1741932644912,-500.0,0.00021945,3]
[356127076,1741932644922,-1015.4,0.00021945,3]
[356127077,1741932644932,-500.0,0.00021945,3]
[356127078,1741932644941,-500.0,0.00021945,3]
[356127079,1741932644951,-500.0,0.00021945,3]
[356127080,1741932644961,-500.0,0.00021945,3]
[356127081,1741932644971,-633.7,0.00021945,3]
[356127082,1741932644981,-160.37921058,0.00021945,3]
[356127083,1741932644991,-500.0,0.00021945,3]
[356127084,1741932645001,-500.0,0.00021945,3]
[356127085,1741932645011,-993.53,0.00021945,3]
[356127086,1741932645025,-576.94,0.00021945,3]
[356127087,1741932645034,-500.0,0.00021945,3]
[356127088,1741932645044,-500.0,0.00021945,3]
[356127089,1741932645055,-573.65,0.00021945,3]
[356127090,1741932645066,-500.0,0.00021945,3]
[356127091,1741932645075,-500.0,0.00021945,3]
[356127092,1741932645085,-1066.6,0.00021945,3]
[356127093,1741932645095,-500.0,0.00021945,3]
[356127094,1741932645105,-594.5,0.00021945,3]
[356127095,1741932645115,-500.0,0.00021945,3]
[356127096,1741932645124,-469.11712096,0.00021945,3]
[356127097,1741932645134,-586.41818199,0.00021945,3]
[356127098,1741932645143,-500.0,0.00021945,3]
[356127099,1741932645153,-778.5,0.00021945,3]
[356127100,1741932645163,-151.0,0.00021945,7]
[356127101,1741932645173,-1615.97,0.00021945,3]
[356127102,1741932645182,-151.0,0.00021945,7]
[356127103,1741932645192,-500.0,0.00021945,3]
[356127104,1741932645203,-500.0,0.00021945,3]
[356127105,1741932645213,-500.0,0.00021945,3]
[356127106,1741932645223,-500.0,0.00021945,3]
[356127107,1741932645232,-500.0,0.00021945,3]
[356127108,1741932645242,-500.0,0.00021945,3]
[356127109,1741932645252,-947.082823,0.00021945,3]
[356127110,1741932645262,-500.0,0.00021945,3]
[356127111,1741932645272,-892.09,0.00021945,3]
[356127112,1741932645282,-597.14,0.00021945,3]
[356127114,1741932645292,-638.03,0.00021945,3]
[356127116,1741932645301,-204.623166,0.00021945,3]
[356127118,1741932645311,-500.0,0.00021945,3]
[356127120,1741932645320,-500.0,0.00021945,3]
[356127122,1741932645330,-1471.62,0.00021945,3]
[356127124,1741932645339,-500.0,0.00021945,3]
[356127126,1741932645349,-500.0,0.00021945,3]
[356127128,1741932645358,-500.0,0.00021945,3]
[356127130,1741932645368,-500.0,0.00021945,3]
[356127132,1741932645378,-1436.85,0.00021945,3]
[356127134,1741932645387,-500.0,0.00021945,3]
[356127136,1741932645397,-602.17053454,0.00021945,3]
[356127138,1741932645407,-819.450112,0.00021945,7]
[356127140,1741932645416,-819.450112,0.00021945,7]
[356127142,1741932645426,-500.0,0.00021945,3]
[356127144,1741932645435,-500.0,0.00021945,3]
[356127146,1741932645445,-500.0,0.00021945,3]
[356127148,1741932645455,-528.91,0.00021945,3]
[356127150,1741932645464,-500.0,0.00021945,3]
[356127151,1741932645474,-500.0,0.00021945,3]
[356127152,1741932645483,-500.0,0.00021945,3]
[356127153,1741932645494,-575.03,0.00021945,3]
[356127154,1741932645504,-500.0,0.00021945,3]
[356127155,1741932645513,-500.0,0.00021945,3]
[356127156,1741932645523,-1436.58,0.00021945,3]
[356127157,1741932645532,-500.0,0.00021945,3]
[356127158,1741932645542,-609.1,0.00021945,3]
[356127159,1741932645551,-500.0,0.00021945,3]
[356127160,1741932645561,-500.0,0.00021945,3]
[356127161,1741932645571,-563.48,0.00021945,3]
[356127162,1741932645581,-500.0,0.00021945,3]
[356127163,1741932645592,-500.0,0.00021945,3]
[356127164,1741932645602,-542.27,0.00021945,3]
[356127165,1741932645613,-500.0,0.00021945,3]
[356127166,1741932645623,-500.0,0.00021945,3]
[356127167,1741932645633,-500.0,0.00021945,3]
[356127168,1741932645643,-500.0,0.00021945,3]
[356127169,1741932645653,-500.0,0.00021945,3]
[356127170,1741932645663,-500.0,0.00021945,3]
[356127171,1741932645673,-672.88,0.00021945,3]
[356127172,1741932645683,-500.0,0.00021945,3]
[356127173,1741932645693,-508.22168919,0.00021945,3]
[356127174,1741932645703,-500.0,0.00021945,3]
[356127175,1741932645713,-500.0,0.00021945,3]
[356127176,1741932645722,-500.0,0.00021945,3]
[356127177,1741932645732,-500.0,0.00021945,3]
[356127178,1741932645742,-508.57558114,0.00021945,3]
[356127179,1741932645753,-814.9,0.00021945,3]
[356127180,1741932645763,-500.0,0.00021945,3]
[356127181,1741932645772,-500.0,0.00021945,3]
[356127182,1741932645783,-502.85818357,0.00021945,3]
[356127183,1741932645792,-704.37,0.00021945,3]
[356127184,1741932645802,-574.11,0.00021945,3]
[356127185,1741932645812,-500.0,0.00021945,3]
[356127186,1741932645822,-796.66,0.00021945,3]
[356127187,1741932645831,-500.0,0.00021945,3]
[356127188,1741932645841,-500.0,0.00021945,3]
[356127189,1741932645851,-500.0,0.00021945,3]
[356127190,1741932645860,-500.0,0.00021945,3]
[356127191,1741932645870,-500.0,0.00021945,3]
[356127192,1741932645879,-500.0,0.00021945,3]
[356127193,1741932645889,-1275.53,0.00021945,3]
[356127194,1741932645900,-500.0,0.00021945,3]
[356127195,1741932645910,-500.0,0.00021945,3]
[356127196,1741932645920,-500.0,0.00021945,3]
[356127197,1741932645930,-186.6718595,0.00021945,3]
[356127198,1741932645940,-911.29,0.00021945,3]
[356127199,1741932645949,-500.0,0.00021945,3]
[356127200,1741932645959,-500.0,0.00021945,3]
[356127201,1741932645969,-512.06270599,0.00021945,3]
[356127202,1741932645979,-500.0,0.00021945,3]
[356127204,1741932645989,-1336.33,0.00021945,3]
[356127206,1741932645999,-926.19,0.00021945,3]
[356127208,1741932646010,-730.7,0.00021945,3]
[356127210,1741932646022,-500.0,0.00021945,3]
[356127212,1741932646033,-500.0,0.00021945,3]
[356127214,1741932646043,-500.0,0.00021945,3]
[356127216,1741932646052,-500.0,0.00021945,3]
[356127217,1741932646063,-151.0,0.00021945,7]
[356127220,1741932646074,-500.0,0.00021945,3]
[356127222,1741932646085,-500.0,0.00021945,3]
[356127224,1741932646095,-817.3,0.00021945,3]
[356127226,1741932646106,-500.0,0.00021945,3]
[356127228,1741932646116,-151.0,0.00021945,7]
[356127230,1741932646127,-151.900721,0.00021945,7]
[356127232,1741932646136,-500.0,0.00021945,3]
[356127234,1741932646146,-500.0,0.00021945,3]
[356127236,1741932646156,-2535.42,0.00021945,3]
[356127238,1741932646166,-1968.25,0.00021945,3]
[356127239,1741932646177,-500.0,0.00021945,3]
[356127241,1741932646187,-500.0,0.00021945,3]
[356127243,1741932646197,-802.2,0.00021945,3]
[356127245,1741932646207,-500.0,0.00021945,3]
[356127247,1741932646217,-500.0,0.00021945,3]
[356127249,1741932646227,-500.0,0.00021945,3]
[356127251,1741932646236,-500.0,0.00021945,3]
[356127253,1741932646246,-500.0,0.00021945,3]
[356127255,1741932646256,-500.0,0.00021945,3]
[356127257,1741932646266,-500.0,0.00021945,3]
[356127259,1741932646276,-500.0,0.00021945,3]
[356127261,1741932646286,-500.0,0.00021945,3]
[356127263,1741932646296,-1406.8,0.00021945,3]
[356127266,1741932646306,-1582.24,0.00021945,3]
[356127268,1741932646316,-500.0,0.00021945,3]
[356127270,1741932646326,-500.0,0.00021945,3]
[356127272,1741932646336,-500.0,0.00021945,3]
[356127274,1741932646346,-500.0,0.00021945,3]
[356127276,1741932646355,-500.0,0.00021945,3]
[356127277,1741932646365,-500.0,0.00021945,3]
[356127279,1741932646375,-500.0,0.00021945,3]
[356127281,1741932646385,-500.0,0.00021945,3]
[356127284,1741932646395,-503.83,0.00021945,3]
[356127286,1741932646405,-500.0,0.00021945,3]
[356127288,1741932646416,-576.59161711,0.00021945,3]
[356127290,1741932646426,-500.0,0.00021945,3]
[356127291,1741932646652,-500.0,0.00021945,3]
[356127292,1741932646663,-500.0,0.00021945,3]
[356127293,1741932646672,-500.0,0.00021945,3]
[356127294,1741932646681,-1188.99,0.00021945,3]
[356127295,1741932646691,-500.0,0.00021945,3]
[356127296,1741932646700,-670.62,0.00021945,3]
[356127297,1741932646710,-416.57513173,0.00021945,3]
[356127298,1741932646719,-151.0,0.00021945,7]
[356127299,1741932646728,-151.0,0.00021945,7]
[356127300,1741932646738,-500.0,0.00021945,3]
[356127301,1741932646747,-500.0,0.00021945,3]
[356127302,1741932646756,-500.0,0.00021945,3]
[356127303,1741932646766,-608.29,0.00021945,3]
[356127304,1741932646775,-1070.77,0.00021945,3]
[356127305,1741932646784,-500.0,0.00021945,3]
[356127306,1741932646794,-500.0,0.00021945,3]
[356127307,1741932646803,-500.0,0.00021945,3]
[356127308,1741932646812,-500.0,0.00021945,3]
[356127309,1741932646822,-151.0,0.00021945,7]
[356127310,1741932646831,-151.0,0.00021945,7]
[356127311,1741932646840,-500.0,0.00021945,2]
[356127312,1741932646850,-500.0,0.00021945,3]
[356127313,1741932646859,-903.88,0.00021945,3]
[356127314,1741932646868,-500.0,0.00021945,3]
[356127315,1741932646877,-151.0,0.00021945,7]
[356127316,1741932646886,-151.0,0.00021945,7]
[356127317,1741932646898,-500.0,0.00021945,3]
[356127318,1741932646915,-710.3,0.00021945,3]
[356127319,1741932646924,-500.0,0.00021945,3]
[356127320,1741932646934,-1320.91,0.00021945,3]
[356127321,1741932646943,-500.0,0.00021945,3]
[356127322,1741932646952,-276.10990556,0.00021945,3]
[356127323,1741932646962,-1248.64,0.00021945,3]
[356127324,1741932646971,-685.85,0.00021945,3]
[356127325,1741932646981,-500.0,0.00021945,3]
[356127326,1741932646991,-500.0,0.00021945,3]
[356127327,1741932647000,-500.0,0.00021945,3]
[356127328,1741932647010,-500.0,0.00021945,3]
[356127329,1741932647022,-571.49,0.00021945,3]
[356127330,1741932647031,-500.0,0.00021945,3]
[356127331,1741932647041,-1157.94,0.00021945,3]
[356127332,1741932647050,-500.0,0.00021945,3]
[356127333,1741932647060,-500.0,0.00021945,3]
[356127334,1741932647070,-500.0,0.00021945,3]
[356127335,1741932647079,-764.19,0.00021945,3]
[356127336,1741932647089,-500.0,0.00021945,3]
[356127337,1741932647098,-500.0,0.00021945,3]
[356127338,1741932647107,-500.0,0.00021945,3]
[356127339,1741932647117,-500.0,0.00021945,3]
[356127340,1741932647127,-563.329124,0.00021945,7]
[356127341,1741932647136,-1135.59,0.00021945,3]
[356127342,1741932647146,-563.329124,0.00021945,7]
[356127343,1741932647155,-151.0,0.00021945,7]
[356127344,1741932647165,-151.0,0.00021945,7]
[356127345,1741932647175,-563.329124,0.00021945,7]
[356127346,1741932647185,-563.329124,0.00021945,7]
[356127347,1741932647195,-500.0,0.00021945,3]
[356127348,1741932647204,-500.0,0.00021945,7]
[356127349,1741932647213,-500.0,0.00021945,3]
[356127350,1741932647223,-537.6,0.00021945,3]
[356127351,1741932647233,-749.46,0.00021945,3]
[356127352,1741932647243,-151.0,0.00021945,7]
[356127353,1741932647252,-151.0,0.00021945,7]
[356127354,1741932647262,-500.0,0.00021945,3]
[356127355,1741932647271,-500.0,0.00021945,3]
[356127356,1741932647281,-500.0,0.00021945,3]
[356127357,1741932647290,-782.56,0.00021945,3]
[356127358,1741932647299,-500.0,0.00021945,3]
[356127359,1741932647309,-500.0,0.00021945,3]
[356127360,1741932647319,-783.81,0.00021945,3]
[356127361,1741932647328,-500.0,0.00021945,3]
[356127362,1741932647338,-500.0,0.00021945,3]
[356127363,1741932647348,-500.0,0.00021945,3]
[356127364,1741932647358,-500.0,0.00021945,3]
[356127365,1741932647368,-500.0,0.00021945,3]
[356127366,1741932647377,-500.0,0.00021945,3]
[356127367,1741932647387,-500.0,0.00021945,3]
[356127368,1741932647398,-500.0,0.00021945,3]
[356127369,1741932647407,-895.06,0.00021945,3]
[356127370,1741932647417,-500.0,0.00021945,3]
[356127371,1741932647426,-502.90644328,0.00021945,3]
[356127372,1741932647436,-500.0,0.00021945,3]
[356127373,1741932647446,-500.0,0.00021945,3]
[356127374,1741932647455,-1327.75,0.00021945,3]
[356127375,1741932647465,-247.103687,0.00021945,7]
[356127376,1741932647474,-500.0,0.00021945,3]
[356127377,1741932647484,-500.0,0.00021945,3]
[356127378,1741932647494,-500.0,0.00021945,3]
[356127379,1741932647504,-500.0,0.00021945,3]
[356127380,1741932647514,-500.0,0.00021945,3]
[356127381,1741932647523,-500.0,0.00021945,3]
[356127382,1741932647532,-500.0,0.00021945,3]
[356127383,1741932647542,-500.0,0.00021945,3]
[356127384,1741932647551,-500.0,0.00021945,3]
[356127385,1741932647560,-500.0,0.00021945,3]
[356127386,1741932647570,-1829.51,0.00021945,3]
[356127387,1741932647580,-1087.48,0.00021945,3]
[356127388,1741932647589,-500.0,0.00021945,3]
[356127389,1741932647599,-151.0,0.00021945,7]
[356127390,1741932647608,-151.0,0.00021945,7]
[356127391,1741932647618,-500.0,0.00021945,3]
[356127392,1741932647627,-500.0,0.00021945,3]
[356127393,1741932647637,-500.0,0.00021945,3]
[356127394,1741932647646,-500.0,0.00021945,3]
[356127395,1741932647655,-500.0,0.00021945,3]
[356127396,1741932647665,-500.0,0.00021945,3]
[356127397,1741932647675,-500.0,0.00021945,3]
[356127398,1741932647685,-500.0,0.00021945,3]
[356127399,1741932647694,-500.0,0.00021945,3]
[356127400,1741932647703,-1267.56,0.00021945,3]
[356127401,1741932647713,-500.0,0.00021945,3]
[356127402,1741932647722,-500.0,0.00021945,3]
[356127403,1741932647731,-1097.33,0.00021945,3]
[356127404,1741932647741,-500.0,0.00021945,3]
[356127405,1741932647750,-500.0,0.00021945,3]
[356127406,1741932647760,-500.0,0.00021945,3]
[356127407,1741932647769,-500.0,0.00021945,3]
[356127408,1741932647779,-500.0,0.00021945,3]
[356127409,1741932647789,-500.0,0.00021945,3]
[356127410,1741932647798,-823.04,0.00021945,3]
[356127411,1741932647807,-500.0,0.00021945,3]
[356127412,1741932647816,-500.0,0.00021945,3]
[356127413,1741932647826,-151.0,0.00021945,7]
[356127414,1741932647835,-151.0,0.00021945,7]
[356127415,1741932647844,-500.0,0.00021945,3]
[356127416,1741932647853,-500.0,0.00021945,3]
[356127417,1741932647862,-500.0,0.00021945,3]
[356127418,1741932647872,-500.0,0.00021945,3]
[356127419,1741932647881,-500.0,0.00021945,3]
[356127420,1741932647890,-151.0,0.00021945,7]
[356127421,1741932647899,-151.0,0.00021945,7]
[356127422,1741932647910,-500.0,0.00021945,3]
[356127423,1741932647919,-500.0,0.00021945,3]
[356127424,1741932647929,-500.0,0.00021945,3]
[356127425,1741932647938,-500.0,0.00021945,3]
[356127426,1741932647948,-151.0,0.00021945,7]
[356127427,1741932647957,-500.0,0.00021945,3]
[356127428,1741932647967,-151.0,0.00021945,7]
[356127429,1741932647977,-500.0,0.00021945,3]
[356127430,1741932647986,-254.00382901,0.00021945,3]
[356127431,1741932648843,-430.44253387,0.00018783,2]
[356127432,1741932648854,-404.760008,0.00018783,2]
[356127433,1741932648866,-278.79745813,0.00018783,2]
[356127434,1741932648876,-1114.0,0.00021783,2]
[356127435,1741932648885,-500.0,0.00021917,3]
[356127436,1741932648895,-412.45566929,0.00021945,3]
[356127437,1741932649283,-64.3805017,0.00021945,3]
[356127438,1741932649292,-500.0,0.00021945,3]
[356127439,1741932649302,-51.08434803,0.00021945,3]
[356127440,1741932651151,-500.0,0.00021917,3]
[356127441,1741932651161,-448.91565197,0.00021945,3]
[356127442,1741932651171,-187.45074803,0.00021945,3]
[356127443,1741932658984,-163.02660544,0.00021917,3]
[356127444,1741932873531,-463.09,0.00021053,30]
[356127459,1741933754908,-245.75244979,9.89e-05,2]
[356127466,1741933807812,-245.75244979,9.89e-05,2]
[356127467,1741933819446,-250.0,9.84e-05,2]
[356127475,1741933831833,-138.84512,9.84e-05,2]
[356127476,1741933831843,-80.94370042,9.89e-05,2]
[356127477,1741933831852,-300.0,9.989e-05,2]
[356127478,1741933831862,-465.53350998,9.99e-05,2]
[356127479,1741933831873,-10384.39516086,9.99e-05,2]
[356127480,1741933831883,-150.0,9.999e-05,2]
[356127481,1741933831892,-500.0,9.999e-05,2]
[356127482,1741933831901,-230.66167463,9.999e-05,2]
[356127483,1741933831910,-493.47626952,9.999e-05,2]
[356127484,1741933831920,-500.0,9.999e-05,2]
[356127485,1741933831929,-500.0,9.999e-05,2]
[356127486,1741933831939,-500.0,9.999e-05,2]
[356127487,1741933831948,-1592.20572889,0.0001,2]
[356127488,1741933831964,-620.0,0.0001,2]
[356127519,1741933837639,-164298.0,0.0001,2]
[356127520,1741933837653,-328.31708524,0.0001,2]
[356127521,1741933837729,-17365.63091135,0.0001,2]
[356127534,1741933840229,-787.36,0.0001,2]
[356127535,1741933840240,-2295.0,0.0001,2]
[356127536,1741933840251,-2747.0,0.0001,2]
[356127538,1741933842840,-497.06061393,0.0001,2]
[356127550,1741933845834,-3519.15770346,0.0001,2]
[356127551,1741933845845,-3078.27529477,0.0001,2]
[356127552,1741933845933,-440.36,0.0001,2]
[356127560,1741934313174,-164.45,9.8e-05,2]
[356127561,1741934316594,-500.0,9.8e-05,2]
[356127562,1741934317410,-150.0,9.8e-05,2]
[356127563,1741934323199,-150.0,9.8e-05,2]
[356127564,1741934343535,-164.45,9.8e-05,2]
[356127565,1741934384712,-150.0,9.751e-05,2]
[356127566,1741934413474,-300.0,9.751e-05,2]
[356127567,1741934457195,-300.0,9.8e-05,2]
[356127568,1741934463625,-153.574088,9.751e-05,2]
[356127569,1741934463649,-113.26656986,9.8e-05,2]
[356127570,1741934523987,-266.84065786,9.8e-05,2]
[356127571,1741934538847,-162.28401461,9.8e-05,2]
[356127572,1741934545993,-339.64102603,9.8e-05,2]
[356127573,1741934634824,-196.34065786,9.8e-05,2]
[356127574,1741934641967,-205.73,9.8e-05,2]
[356127575,1741934746375,-151.06,9.8e-05,2]
[356127576,1741934793032,-150.0,9.8e-05,2]
[356127612,1741934855430,-171.09278289,9.8e-05,2]
[356127613,1741934884496,-150.0,9.8e-05,2]
[356127614,1741934887699,-196.36919943,9.8e-05,2]
[356127620,1741934958575,-150.0,9.8e-05,2]
[356127621,1741934965942,-85.51809146,9.8e-05,2]
[356127622,1741934965966,-166.342,9.8e-05,2]
[356127623,1741934965990,-47.37990854,9.899e-05,2]
[356127632,1741935032065,-102.62009146,9.899e-05,2]
[356127633,1741935032075,-1731.43410307,9.9e-05,2]
[356127634,1741935032101,-579.64276267,9.9e-05,2]
[356127635,1741935032227,-568.53993426,9.9e-05,2]
[356127636,1741935032239,-1671.2101,9.9e-05,2]
[356127637,1741935032248,-2496.5669457,9.9e-05,2]
[356127638,1741935032260,-1604.68127046,9.9e-05,2]
[356127639,1741935032271,-397.25235188,9.9e-05,2]
[356127641,1741935032908,-150.0,9.9e-05,2]
[356127669,1741935040071,-2090.40897658,9.9e-05,2]
[356127670,1741935040320,-128.92475829,9.9e-05,2]
[356127671,1741935040334,-2581.26489709,9.9e-05,2]
[356127672,1741935040343,-399.1435,9.9e-05,2]
[356127673,1741935040354,-571.35174392,9.9e-05,2]
[356127674,1741935040363,-502.86505446,9.973e-05,2]
[356127675,1741935040372,-500.09215527,9.973e-05,2]
[356127676,1741935040382,-929.40002185,9.999e-05,2]
[356127677,1741935040391,-1392.16838634,9.999e-05,3]
[356127678,1741935040400,-228065.51924107,0.0001,2]
[356127679,1741935040412,-3228.84428999,0.0001,2]
[356127680,1741935040424,-87712.52131275,0.0001,2]
[356127681,1741935040436,-2888.21553234,0.0001,2]
[356127682,1741935040447,-267.73030637,0.0001,2]
[356127683,1741935040473,-20377.23271102,0.0001,2]
[356127684,1741935040484,-43258.73692137,0.0001,2]
[356127685,1741935040499,-5837.0,0.0001,2]
[356127686,1741935040514,-362.55863382,0.0001,2]
[356127687,1741935040542,-372.50946649,0.0001,2]
[356127688,1741935040553,-1476.29675264,0.0001,2]
[356127689,1741935040566,-2101.90480967,0.0001,2]
[356127690,1741935040577,-1668.3132264,0.0001,2]
[356127691,1741935040591,-1094.0,0.0001,2]
[356127692,1741935040603,-1728.77262585,0.0001,2]
[356127693,1741935040614,-493.98587737,0.0001,2]
[356127697,1741935043905,-46222.56417382,0.0001,2]
[356127698,1741935044052,-457.46955249,0.0001,2]
[356127699,1741935044067,-10473.69002335,0.0001,2]
[356127700,1741935046026,-2137.81251286,0.0001,2]
[356127701,1741935046039,-254.39513532,0.0001,2]
[356127715,1741935046870,-608.83533071,0.0001,2]
[356127716,1741935843631,-300.0,9.899e-05,2]
[356127765,1741936232321,-168.2308,9.9e-05,2]
[356127766,1741936232331,-91.7509,9.95e-05,2]
[356127773,1741936238563,-58.2491,9.95e-05,2]
[356127774,1741936238573,-300.0,9.998e-05,2]
[356127775,1741936238583,-150.0,9.999e-05,2]
[356127776,1741936238592,-128.91628143,0.0001,2]
[356127780,1741936239292,-250.31882384,0.0001,2]
[356127781,1741936240550,-707.99644718,0.0001,2]
[356127784,1741936242047,-150.0,0.0001,2]
[356127785,1741936244207,-198472.42734749,0.0001,2]
[356127786,1741936244221,-501.44375786,0.0001,2]
[356127787,1741936244232,-163.18329403,0.0001,2]
[356127788,1741936244242,-153.28446984,0.0001,2]
[356127789,1741936244252,-161.62938509,0.0001,2]
[356127790,1741936244261,-160.35778952,0.0001,2]
[356127791,1741936244270,-156.0,0.0001,3]
[356127792,1741936244279,-180.721319,0.0001,2]
[356127793,1741936244289,-308.48433733,0.0001,2]
[356127794,1741936244299,-475.4550664,0.0001,2]
[356127795,1741936244308,-152.08841409,0.0001,2]
[356127796,1741936244318,-4231.5339384,0.00010883,2]
[356127797,1741936244328,-550.0,0.0001089,2]
[356127798,1741936244338,-550.0,0.0001089,2]
[356127799,1741936244347,-150.0,0.0001089,2]
[356127800,1741936244357,-550.0,0.0001089,2]
[356127801,1741936244366,-150.0,0.0001089,2]
[356127802,1741936244376,-266.0,0.00010998,2]
[356127804,1741936244385,-1819.68677084,0.00011099,2]
[356127806,1741936244395,-1819.68677078,0.00011211,2]
[356127808,1741936244404,-150.99,0.00012087,2]
[356127810,1741936244416,-299.99,0.00012087,2]
[356127811,1741936244425,-2207.7,0.00012087,2]
[356127812,1741936244434,-999.99,0.00012087,2]
[356127813,1741936244444,-642.64,0.00012087,2]
[356127814,1741936244454,-1423.66,0.00012087,2]
[356127815,1741936244468,-7039.92,0.00012087,2]
[356127816,1741936244477,-2640.13,0.00012087,2]
[356127817,1741936244486,-241.67,0.00012087,2]
[356127818,1741936244496,-152.52,0.00012087,2]
[356127819,1741936244505,-1819.68677078,0.00012522,2]
[356127820,1741936244515,-278.74414508,0.00012728,2]
[356127821,1741936244524,-156.0,0.00012768,3]
[356127822,1741936244535,-151.0,0.0001365,2]
[356127823,1741936244544,-3934.0,0.0001365,2]
[356127824,1741936244554,-1013.0,0.0001365,2]
[356127825,1741936244563,-500.0,0.00013659,2]
[356127826,1741936244573,-500.0,0.00013659,2]